bitfinex/quotes_BTCUSD_20251120
["timestamp","ask_amount","ask_price","bid_price","bid_amount"]
[1763664273802,0.00025227,86937.0,86926.0,0.09983]
[1763664274271,0.00025227,86937.0,86936.0,0.04283]
[1763664274424,0.00025227,86937.0,86936.0,0.05663325]
[1763664274761,0.00025227,86937.0,86936.0,0.16347249]
[1763664275658,0.00025227,86937.0,86936.0,0.19462299]
[1763664275861,0.01805768,86943.0,86936.0,0.19462299]
[1763664275862,0.01805768,86943.0,86937.0,0.05210249]
[1763664276064,0.00012576,86949.0,86943.0,0.05210249]
[1763664276247,0.00012576,86949.0,86948.0,0.09493249]
[1763664276443,0.00012576,86949.0,86940.0,0.323]
[1763664276648,0.00012576,86949.0,86941.0,0.09010731]
[1763664276836,0.00012576,86949.0,86941.0,0.05210249]
[1763664277035,0.00012576,86949.0,86939.0,0.05210249]
[1763664277437,0.00012576,86949.0,86940.0,0.05210249]
[1763664277884,0.00012576,86949.0,86948.0,0.04283]
[1763664278267,0.00012576,86949.0,86941.0,0.06854]
[1763664278467,0.00012576,86949.0,86941.0,0.06660728]
[1763664278668,0.00012576,86949.0,86940.0,0.05210249]
[1763664278869,0.00012576,86949.0,86931.0,0.05210249]
[1763664279074,0.00012576,86949.0,86940.0,0.05210249]
[1763664280237,0.00012576,86949.0,86948.0,0.04283]
[1763664280794,0.00012576,86949.0,86948.0,0.11137]
[1763664280977,0.00012576,86949.0,86948.0,0.04283]
[1763664281432,0.00012576,86949.0,86948.0,0.11137]
[1763664281850,0.00012576,86949.0,86948.0,0.04283]
[1763664282743,0.00012576,86949.0,86936.0,0.06854]
[1763664283449,0.00012576,86949.0,86933.0,0.323]
[1763664283655,0.00012576,86949.0,86929.0,0.05210249]
[1763664283873,0.0213325,86948.0,86929.0,0.05210249]
[1763664284089,0.0213325,86947.0,86930.0,0.78168355]
[1763664284236,0.0213325,86946.0,86928.0,0.06854]
[1763664284441,0.0213325,86945.0,86928.0,0.06854]
[1763664284645,0.0213325,86944.0,86928.0,0.06854]
[1763664284846,0.0213325,86943.0,86928.0,0.06854]
[1763664285049,0.0213325,86942.0,86921.0,0.323]
[1763664285251,0.0037,86948.0,86916.0,0.03448]
[1763664285252,0.0213325,86941.0,86916.0,0.03448]
[1763664285586,0.0037,86948.0,86916.0,0.03448]
[1763664285587,0.0213325,86940.0,86916.0,0.03448]
[1763664285776,0.0213325,86939.0,86917.0,0.05210249]
[1763664285976,0.0213325,86938.0,86917.0,0.05210249]
[1763664286180,0.0213325,86937.0,86917.0,0.05210249]
[1763664286380,0.0213325,86936.0,86917.0,0.05210249]
[1763664286581,0.0213325,86935.0,86917.0,0.23557643]
[1763664286817,0.0213325,86934.0,86917.0,0.23557643]
[1763664287007,0.0213325,86933.0,86918.0,0.12784564]
[1763664287221,0.001,86941.0,86918.0,0.12784564]
[1763664287529,0.001,86941.0,86916.0,0.03448]
[1763664287530,0.02503126,86940.0,86916.0,0.03448]
[1763664287688,0.02133126,86939.0,86916.0,0.03448]
[1763664287901,0.02503126,86939.0,86916.0,0.03448]
[1763664288058,0.02133126,86938.0,86916.0,0.03448]
[1763664288463,0.02503126,86938.0,86916.0,0.03448]
[1763664288658,0.32312576,86949.0,86916.0,0.03448]
[1763664288659,0.02503126,86937.0,86916.0,0.03448]
[1763664288860,0.02133595,86936.0,86917.0,0.0319]
[1763664289081,0.02133595,86935.0,86910.0,0.78168355]
[1763664289259,0.02133595,86934.0,86910.0,0.08697279]
[1763664289491,0.2,86940.0,86909.0,0.03448]
[1763664289492,0.02133595,86933.0,86909.0,0.03448]
[1763664289694,0.0180605,86929.0,86909.0,0.03448]
[1763664289898,0.02133595,86928.0,86909.0,0.03448]
[1763664290256,0.0037,86910.0,86906.0,0.0014619]
[1763664290453,0.02133431,86927.0,86906.0,0.0014619]
[1763664290454,0.0037,86927.0,86906.0,0.0014619]
[1763664290570,0.02502554,86926.0,86906.0,0.0014619]
[1763664290771,0.02132554,86925.0,86906.0,0.0014619]
[1763664290973,0.02132554,86924.0,86906.0,0.0014619]
[1763664291193,0.02132554,86923.0,86907.0,0.01044819]
[1763664291393,0.02132554,86922.0,86907.0,0.00041944]
[1763664291696,0.2,86930.0,86907.0,0.0142273]
[1763664291697,0.02132554,86921.0,86907.0,0.0142273]
[1763664291925,0.02132554,86920.0,86910.0,0.78168355]
[1763664292124,0.02132554,86919.0,86911.0,0.01380722]
[1763664292355,0.02132554,86918.0,86908.0,0.06854]
[1763664292500,0.0037,86938.0,86908.0,0.06854]
[1763664292702,0.02132165,86937.0,86909.0,0.00704213]
[1763664292966,0.02132165,86936.0,86909.0,0.00704213]
[1763664293178,0.02132165,86935.0,86909.0,0.00704213]
[1763664293347,0.02132165,86934.0,86908.0,0.06854]
[1763664293556,0.01806128,86930.0,86908.0,0.06854]
[1763664293750,0.02132165,86929.0,86908.0,0.06854]
[1763664293950,0.02132165,86928.0,86908.0,0.06854]
[1763664294251,0.02132165,86927.0,86910.0,0.78168355]
[1763664294552,0.02132165,86926.0,86911.0,0.01380722]
[1763664294751,0.02132165,86925.0,86911.0,0.08234722]
[1763664294960,0.001,86929.0,86911.0,0.11424722]
[1763664295116,0.0213015,86928.0,86911.0,0.11424722]
[1763664295319,0.0213015,86927.0,86918.0,0.78168355]
[1763664295530,0.001,86934.0,86928.0,0.07473]
[1763664295722,0.02130303,86933.0,86913.0,0.05210249]
[1763664295932,0.02130303,86932.0,86915.0,0.05210249]
[1763664296120,0.02130303,86931.0,86915.0,0.05210249]
[1763664296346,0.323,86949.0,86916.0,0.06854]
[1763664296347,0.02130303,86930.0,86916.0,0.06854]
[1763664296522,0.0037,86947.0,86916.0,0.06854]
[1763664296728,0.02130131,86944.0,86917.0,0.0934226]
[1763664296946,0.02130131,86943.0,86917.0,0.0934226]
[1763664297148,0.02130131,86942.0,86918.0,0.08234611]
[1763664297351,0.323,86949.0,86921.0,0.05210249]
[1763664297767,0.00125222,86945.0,86922.0,0.06854]
[1763664298127,0.00025222,86945.0,86922.0,0.06854]
[1763664298333,0.01805976,86940.0,86922.0,0.06854]
[1763664298717,0.00025222,86945.0,86922.0,0.09023633]
[1763664298917,0.00125222,86945.0,86922.0,0.09023633]
[1763664299151,0.00225222,86945.0,86922.0,0.09023633]
[1763664299359,0.02130333,86944.0,86922.0,0.02169633]
[1763664299573,0.02130333,86943.0,86922.0,0.09023633]
[1763664299805,0.02130333,86942.0,86922.0,0.09023633]
[1763664299958,0.00125222,86945.0,86922.0,0.09023633]
[1763664299959,0.02130333,86941.0,86922.0,0.09023633]
[1763664300165,0.02130333,86940.0,86917.0,0.0934226]
[1763664300415,0.02130333,86940.0,86915.0,0.06854]
[1763664300416,0.02130333,86939.0,86904.0,0.323]
[1763664300628,0.02130333,86939.0,86907.0,0.32341944]
[1763664300629,0.02130333,86938.0,86907.0,0.32341944]
[1763664300898,0.00392,86937.0,86912.0,0.06854]
[1763664301063,0.02130333,86936.0,86912.0,0.06854]
[1763664301259,0.02130333,86936.0,86913.0,0.07994853]
[1763664301469,0.02130333,86936.0,86907.0,0.00041944]
[1763664301470,0.00369,86935.0,86907.0,0.00041944]
[1763664301812,0.02130333,86934.0,86907.0,0.00041944]
[1763664302012,0.2,86930.0,86907.0,0.00041944]
[1763664302151,0.02130333,86929.0,86907.0,0.00041944]
[1763664302348,0.2,86920.0,86907.0,0.00041944]
[1763664302552,0.34430333,86919.0,86907.0,0.00041944]
[1763664302802,0.46631229,86917.0,86907.0,0.00041944]
[1763664302958,0.34822333,86916.0,86907.0,0.00041944]
[1763664303177,0.02130333,86915.0,86907.0,0.00041944]
[1763664303578,0.64619868,86908.0,86907.0,0.00041944]
[1763664303867,0.39640582,86908.0,86907.0,0.00041944]
[1763664304251,0.48466077,86908.0,86907.0,0.00041944]
[1763664304453,0.48344634,86908.0,86907.0,0.00041944]
[1763664304699,0.48736634,86908.0,86907.0,0.00041944]
[1763664305327,0.48936634,86908.0,86907.0,0.00041944]
[1763664305528,0.34830333,86908.0,86907.0,0.00041944]
[1763664305780,0.35222333,86908.0,86907.0,0.00041944]
[1763664306477,0.02722333,86908.0,86907.0,0.00041944]
[1763664306888,0.02922333,86908.0,86907.0,0.00041944]
[1763664307034,0.02722333,86908.0,86907.0,0.00041944]
[1763664307235,0.02922333,86908.0,86907.0,0.00041944]
[1763664308326,0.02722333,86908.0,86907.0,0.00041944]
[1763664308525,0.00392,86908.0,86907.0,0.00041944]
[1763664308642,0.39909135,86908.0,86907.0,0.00041944]
[1763664309079,0.38102249,86908.0,86907.0,0.00041944]
[1763664309660,0.05802249,86908.0,86907.0,0.00041944]
[1763664310035,0.38102249,86908.0,86907.0,0.00041944]
[1763664311173,0.05802249,86908.0,86907.0,0.00041944]
[1763664311388,0.00592,86908.0,86907.0,0.00041944]
[1763664312459,0.02198914,86908.0,86907.0,0.00041944]
[1763664313085,0.02298914,86908.0,86907.0,0.00041944]
[1763664314170,0.02298914,86908.0,86907.0,0.10844944]
[1763664314398,0.02398914,86908.0,86907.0,0.11929438]
[1763664314790,0.02298914,86908.0,86907.0,0.11929438]
[1763664315018,0.02198914,86908.0,86907.0,0.10844944]
[1763664315212,0.02198914,86908.0,86907.0,0.04229944]
[1763664315411,0.02198914,86908.0,86907.0,0.00141944]
[1763664315591,0.02198914,86908.0,86907.0,0.10944944]
[1763664316159,0.02198914,86908.0,86907.0,0.00141944]
[1763664317826,0.02198914,86908.0,86907.0,0.10944944]
[1763664318661,0.02198914,86908.0,86907.0,0.04329944]
[1763664318861,0.02198914,86908.0,86907.0,0.00141944]
[1763664319970,0.02198914,86908.0,86907.0,0.00041944]
[1763664320148,0.02198914,86908.0,86907.0,0.00141944]
[1763664320374,0.04333573,86908.0,86907.0,0.00041944]
[1763664322295,0.04433573,86908.0,86907.0,0.00041944]
[1763664323152,0.02626659,86908.0,86907.0,0.00041944]
[1763664323313,0.02726659,86908.0,86907.0,0.00041944]
[1763664324107,0.02626659,86908.0,86907.0,0.00041944]
[1763664324530,0.02826659,86908.0,86907.0,0.00041944]
[1763664330912,0.02434659,86908.0,86907.0,0.00041944]
[1763664331084,0.02826659,86908.0,86907.0,0.00041944]
[1763664334636,0.02834693,86908.0,86907.0,0.00041944]
[1763664336701,0.04641409,86908.0,86907.0,0.00041944]
[1763664337029,0.08732872,86908.0,86907.0,0.00041944]
[1763664337263,0.02834693,86908.0,86907.0,0.00041944]
[1763664337903,3.31985662,86908.0,86907.0,0.00041944]
[1763664338102,0.1343285,86899.0,86888.0,36.94460515]
[1763664338344,0.03086447,86894.0,86888.0,36.94464708]
[1763664338473,0.02142693,86893.0,86889.0,0.01381072]
[1763664338672,0.00392,86898.0,86888.0,36.94464708]
[1763664338673,0.02142693,86892.0,86888.0,36.94464708]
[1763664338882,0.02142693,86891.0,86889.0,0.01381072]
[1763664339082,0.02142693,86890.0,86888.0,36.94464708]
[1763664339303,0.03214156,86889.0,86888.0,36.94464708]
[1763664339866,0.03214156,86889.0,86888.0,36.78765375]
[1763664339867,0.38382029,86889.0,86888.0,36.78765375]
[1763664342299,3.93945285,86889.0,86888.0,36.09498142]
[1763664342418,3.93945285,86889.0,86888.0,36.00838004]
[1763664342621,3.93945285,86889.0,86888.0,35.97373949]
[1763664343002,3.80722595,86889.0,86888.0,35.92101997]
[1763664343139,3.80522595,86889.0,86888.0,35.83787746]
[1763664343476,3.81170506,86889.0,86888.0,35.80323691]
[1763664343678,3.81418417,86889.0,86888.0,35.76859636]
[1763664343917,3.79687096,86889.0,86888.0,35.73395581]
[1763664344062,3.79687096,86889.0,86888.0,35.69931526]
[1763664344063,3.79787096,86889.0,86888.0,35.69931526]
[1763664344266,3.79787096,86889.0,86888.0,35.66467471]
[1763664344433,3.80087096,86889.0,86888.0,35.63003416]
[1763664344632,3.58474107,86889.0,86888.0,35.59539361]
[1763664344875,0.58474107,86889.0,86888.0,35.56074987]
[1763664345072,3.58474107,86889.0,86888.0,35.52610613]
[1763664345274,3.59076389,86889.0,86888.0,35.49146239]
[1763664345451,3.59076389,86889.0,86888.0,35.45681865]
[1763664345652,3.59076389,86889.0,86888.0,35.42217491]
[1763664345880,3.84471888,86889.0,86888.0,35.38753117]
[1763664346084,3.79261639,86889.0,86888.0,35.38753117]
[1763664346283,3.79261639,86889.0,86888.0,35.37251624]
[1763664346862,3.84471888,86889.0,86888.0,35.37251624]
[1763664347290,3.83871888,86889.0,86888.0,35.37251624]
[1763664347707,3.84371888,86889.0,86888.0,35.37251624]
[1763664348031,3.84371888,86889.0,86888.0,35.35865638]
[1763664348320,3.84171888,86889.0,86888.0,35.35865638]
[1763664348550,3.84371888,86889.0,86888.0,35.35865638]
[1763664348974,3.84071888,86889.0,86888.0,35.35865638]
[1763664349144,3.86528172,86889.0,86888.0,35.35865638]
[1763664349346,3.86828172,86889.0,86888.0,35.35865638]
[1763664350186,3.86828172,86889.0,86888.0,35.34739559]
[1763664350388,3.81617923,86889.0,86888.0,35.32862761]
[1763664350536,3.87754215,86889.0,86888.0,35.32862761]
[1763664350739,3.9115722,86889.0,86888.0,35.32862761]
[1763664350939,0.85020928,86889.0,86888.0,35.32862761]
[1763664351160,3.85020928,86889.0,86888.0,35.32862761]
[1763664351400,3.5706368,86889.0,86888.0,35.32862761]
[1763664351842,3.61153931,86889.0,86888.0,35.32862761]
[1763664352051,3.8906368,86889.0,86888.0,35.32862761]
[1763664352257,3.8906368,86889.0,86888.0,35.31361515]
[1763664352464,3.8936368,86889.0,86888.0,35.31361515]
[1763664352754,3.66345807,86889.0,86888.0,35.31361515]
[1763664352932,3.65543525,86889.0,86888.0,35.31361515]
[1763664353136,3.88761398,86889.0,86888.0,35.31361515]
[1763664353337,3.88961398,86889.0,86888.0,35.31361515]
[1763664353842,3.88863535,86889.0,86888.0,35.31361515]
[1763664354248,3.89063535,86889.0,86888.0,35.31361515]
[1763664354552,3.88028036,86889.0,86888.0,35.31361515]
[1763664355047,3.93238285,86889.0,86888.0,35.31361515]
[1763664355254,3.93238285,86889.0,86888.0,35.30610851]
[1763664355610,3.93438285,86889.0,86888.0,35.30610851]
[1763664356466,3.93438285,86889.0,86888.0,35.24374589]
[1763664356662,3.96631893,86889.0,86888.0,35.24374589]
[1763664357295,3.97667392,86889.0,86888.0,35.24374589]
[1763664358116,3.97667392,86889.0,86888.0,35.22988685]
[1763664358323,3.97667392,86889.0,86888.0,35.21487298]
[1763664358761,0.74649519,86889.0,86888.0,35.21487298]
[1763664358978,0.14849073,86889.0,86888.0,35.21487298]
[1763664359167,0.08713812,86889.0,86888.0,35.21487298]
[1763664359462,0.41016939,86889.0,86888.0,35.21487298]
[1763664359620,0.40816939,86889.0,86888.0,35.21487298]
[1763664359819,0.08317005,86889.0,86888.0,35.21487298]
[1763664360024,0.38685804,86889.0,86888.0,35.21487298]
[1763664360227,0.41017314,86889.0,86888.0,35.20361485]
[1763664360431,0.40817314,86889.0,86888.0,35.20361485]
[1763664360831,0.70587563,86889.0,86888.0,35.20361485]
[1763664361031,0.65377314,86889.0,86888.0,35.18484884]
[1763664361443,0.71526083,86889.0,86888.0,35.18484884]
[1763664361666,0.65377314,86889.0,86888.0,35.18484884]
[1763664361833,0.65577314,86889.0,86888.0,35.18484884]
[1763664362029,0.71727125,86889.0,86888.0,35.18484884]
[1763664362286,0.33280629,86889.0,86888.0,35.18484884]
[1763664363051,0.65580629,86889.0,86888.0,35.18484884]
[1763664363440,0.33080629,86889.0,86888.0,35.18484884]
[1763664363651,0.37382767,86889.0,86888.0,35.18484884]
[1763664364105,0.81692567,86889.0,86888.0,35.18484884]
[1763664364325,0.77590429,86889.0,86888.0,35.18484884]
[1763664364730,0.53230429,86889.0,86888.0,35.18484884]
[1763664365042,0.5219493,86889.0,86888.0,35.18484884]
[1763664365231,0.75212803,86889.0,86888.0,35.18484884]
[1763664365437,0.75212803,86889.0,86888.0,35.16983844]
[1763664365438,0.82399729,86889.0,86888.0,35.16983844]
[1763664365824,0.53230429,86889.0,86888.0,35.16983844]
[1763664365954,0.41220629,86889.0,86888.0,35.16983844]
[1763664366804,0.07684208,86889.0,86888.0,35.16983844]
[1763664367003,0.06648709,86889.0,86888.0,35.30978084]
[1763664367238,0.06648709,86889.0,86888.0,35.36451084]
[1763664367482,0.0558185,86889.0,86888.0,35.19736844]
[1763664367679,0.0665192,86889.0,86888.0,35.16983844]
[1763664368359,0.0625192,86889.0,86888.0,35.16983844]
[1763664368782,0.0615192,86889.0,86888.0,35.16983844]
[1763664368989,0.0615192,86889.0,86888.0,35.15598541]
[1763664369212,0.0625192,86889.0,86888.0,35.15598541]
[1763664369629,0.0615192,86889.0,86888.0,35.15598541]
[1763664371807,0.3845192,86889.0,86888.0,35.1484814]
[1763664372014,0.3845192,86889.0,86888.0,35.13722474]
[1763664372641,0.3835192,86889.0,86888.0,35.13722474]
[1763664372846,0.3845192,86889.0,86888.0,35.13722474]
[1763664373045,0.0615192,86889.0,86888.0,35.13722474]
[1763664373249,1.89255563,86889.0,86888.0,35.09028999]
[1763664373455,1.8913232,86889.0,86888.0,35.0279352]
[1763664373991,1.8913232,86889.0,86888.0,34.93439786]
[1763664374195,1.8923232,86889.0,86888.0,34.93439786]
[1763664374554,0.5165462,86889.0,86888.0,34.93439786]
[1763664374921,0.5155462,86889.0,86888.0,34.93439786]
[1763664375135,0.5175462,86889.0,86888.0,34.93439786]
[1763664375336,0.51761434,86889.0,86888.0,34.93439786]
[1763664375781,0.51561434,86889.0,86888.0,34.93439786]
[1763664375955,0.51861434,86889.0,86888.0,34.93439786]
[1763664376173,0.75088389,86889.0,86888.0,34.93439786]
[1763664376351,0.74879307,86889.0,86888.0,34.93439786]
[1763664376550,0.74679307,86889.0,86888.0,34.93439786]
[1763664376996,0.74879307,86889.0,86888.0,34.93439786]
[1763664377736,0.51861434,86889.0,86888.0,34.93439786]
[1763664378030,0.55523684,86889.0,86888.0,34.93439786]
[1763664379032,0.57331135,86889.0,86888.0,34.92054115]
[1763664379179,0.57331135,86889.0,86888.0,34.92012832]
[1763664379800,0.55523684,86889.0,86888.0,34.92012832]
[1763664380228,0.55524185,86889.0,86888.0,34.92012832]
[1763664381012,0.78542058,86889.0,86888.0,34.90511713]
[1763664382073,0.78542058,86889.0,86888.0,34.89385782]
[1763664382421,0.83752307,86889.0,86888.0,34.89385782]
[1763664382766,0.83752307,86889.0,86888.0,34.87509093]
[1763664382767,0.85359882,86889.0,86888.0,34.87509093]
[1763664382964,0.93547497,86889.0,86888.0,34.87509093]
[1763664383189,0.93747497,86889.0,86888.0,34.87509093]
[1763664383480,0.85559882,86889.0,86888.0,34.86623217]
[1763664383872,0.86162066,86889.0,86888.0,34.77268504]
[1763664384068,0.85759956,86889.0,86888.0,34.77268504]
[1763664384489,1.12801768,86889.0,86888.0,34.73804622]
[1763664384691,1.12927138,86889.0,86888.0,34.7034074]
[1763664384906,1.13136357,86889.0,86888.0,34.66876858]
[1763664385087,1.13436357,86889.0,86888.0,34.63412976]
[1763664385304,0.89076357,86889.0,86888.0,34.59949094]
[1763664385499,0.89067138,86889.0,86888.0,34.56485212]
[1763664385704,0.88867138,86889.0,86888.0,33.53209318]
[1763664385920,0.88376357,86889.0,86888.0,33.47937535]
[1763664386177,0.88376357,86889.0,86888.0,33.44473653]
[1763664386178,0.88576357,86889.0,86888.0,33.44473653]
[1763664386334,0.88576357,86889.0,86888.0,33.41009771]
[1763664386549,0.88567138,86889.0,86888.0,33.37545889]
[1763664386764,0.85759956,86889.0,86888.0,33.34082007]
[1763664386937,0.83619576,86889.0,86888.0,33.28365589]
[1763664387137,0.56138003,86889.0,86888.0,33.28365589]
[1763664387363,0.53765454,86889.0,86888.0,33.28365589]
[1763664387529,0.48345942,86889.0,86888.0,33.28365589]
[1763664387934,0.55885836,86889.0,86888.0,33.28365589]
[1763664388157,0.56295099,86889.0,86888.0,33.28365589]
[1763664388368,0.88720469,86889.0,86888.0,33.28365589]
[1763664388558,0.88320469,86889.0,86888.0,33.28365589]
[1763664388799,0.88620469,86889.0,86888.0,33.28365589]
[1763664388976,0.88611206,86889.0,86888.0,33.28365589]
[1763664389199,0.88485836,86889.0,86888.0,33.28365589]
[1763664389615,0.81314044,86889.0,86888.0,33.28365589]
[1763664389821,0.86524293,86889.0,86888.0,33.28365589]
[1763664390059,0.6350642,86889.0,86888.0,33.28365589]
[1763664390464,0.84716718,86889.0,86888.0,33.28365589]
[1763664390900,0.56488596,86889.0,86888.0,33.28365589]
[1763664391327,0.60589695,86889.0,86888.0,33.28365589]
[1763664391541,0.28289409,86889.0,86888.0,33.28365589]
[1763664391758,0.23586126,86889.0,86888.0,33.28365589]
[1763664392189,0.2358602,86889.0,86888.0,33.28365589]
[1763664392396,0.2258602,86889.0,86888.0,33.28365589]
[1763664393019,0.4178332,86889.0,86888.0,33.28365589]
[1763664393172,0.59515218,86889.0,86888.0,33.28365589]
[1763664393394,0.73821318,86889.0,86888.0,33.28365589]
[1763664393564,0.42215218,86889.0,86888.0,33.28365589]
[1763664393765,0.60215218,86889.0,86888.0,33.28365589]
[1763664393998,0.28434518,86889.0,86888.0,33.28365589]
[1763664394296,0.60734518,86889.0,86888.0,33.28365589]
[1763664394492,0.60634518,86889.0,86888.0,33.28365589]
[1763664394698,0.60734518,86889.0,86888.0,33.28365589]
[1763664395040,0.4035748,86889.0,86888.0,33.28365589]
[1763664395238,0.43819154,86889.0,86888.0,33.28365589]
[1763664395661,0.43419154,86889.0,86888.0,33.28365589]
[1763664396969,0.43619154,86889.0,86888.0,33.28365589]
[1763664397382,0.36353674,86889.0,86888.0,33.28365589]
[1763664397579,0.36553674,86889.0,86888.0,33.28365589]
[1763664397801,0.36353674,86889.0,86888.0,33.28365589]
[1763664398190,0.00692,86889.0,86888.0,33.28365589]
[1763664398801,0.005,86889.0,86888.0,33.28365589]
[1763664398999,0.003,86889.0,86888.0,33.28365589]
[1763664399444,0.004,86889.0,86888.0,33.28365589]
[1763664399791,0.00792,86889.0,86888.0,33.28365589]
[1763664400007,0.004,86889.0,86888.0,33.28365589]
[1763664400242,0.00692,86889.0,86888.0,33.28365589]
[1763664400466,0.03375064,86889.0,86888.0,33.28365589]
[1763664400670,0.33092,86889.0,86888.0,33.28365589]
[1763664401315,0.32992,86889.0,86888.0,33.28365589]
[1763664401561,0.326,86889.0,86888.0,33.28365589]
[1763664401766,0.32892,86889.0,86888.0,33.28365589]
[1763664401967,0.327,86889.0,86888.0,33.28365589]
[1763664402172,0.32892,86889.0,86888.0,33.28365589]
[1763664402795,0.32992,86889.0,86888.0,33.28365589]
[1763664403231,0.326,86889.0,86888.0,33.28365589]
[1763664403442,0.32992,86889.0,86888.0,33.28365589]
[1763664403662,0.72156136,86889.0,86888.0,33.28365589]
[1763664403876,0.54384893,86889.0,86888.0,33.28365589]
[1763664404112,0.524776,86889.0,86888.0,33.28365589]
[1763664404552,0.525776,86889.0,86888.0,33.28365589]
[1763664404763,0.524776,86889.0,86888.0,33.28365589]
[1763664404974,0.523776,86889.0,86888.0,33.28365589]
[1763664405175,0.525776,86889.0,86888.0,33.28365589]
[1763664405297,0.527776,86889.0,86888.0,33.28365589]
[1763664405493,0.449514,86889.0,86888.0,33.28365589]
[1763664405894,0.33292,86889.0,86888.0,33.28365589]
[1763664406135,0.469544,86889.0,86888.0,33.28365589]
[1763664406496,0.467544,86889.0,86888.0,33.28365589]
[1763664406912,0.49320956,86889.0,86888.0,33.28365589]
[1763664407111,0.50728299,86889.0,86888.0,33.28365589]
[1763664407314,0.50628299,86889.0,86888.0,33.28365589]
[1763664407529,0.50828299,86889.0,86888.0,33.28365589]
[1763664407762,0.50728299,86889.0,86888.0,33.28365589]
[1763664407969,0.54189922,86889.0,86888.0,33.28365589]
[1763664408171,0.54389922,86889.0,86888.0,33.28365589]
[1763664408375,0.54389922,86889.0,86888.0,33.27615025]
[1763664408827,0.53462622,86889.0,86888.0,33.26489113]
[1763664409122,0.53262622,86889.0,86888.0,33.26489113]
[1763664409759,0.53162622,86889.0,86888.0,33.26489113]
[1763664409957,0.53362622,86889.0,86888.0,33.26489113]
[1763664410300,0.53562622,86889.0,86888.0,33.26489113]
[1763664410516,0.53162622,86889.0,86888.0,33.26489113]
[1763664410918,0.53562622,86889.0,86888.0,33.26489113]
[1763664412793,0.76580495,86889.0,86888.0,33.26489113]
[1763664413713,0.81790744,86889.0,86888.0,33.26489113]
[1763664413913,0.84832297,86889.0,86888.0,33.26489113]
[1763664414905,0.84689223,86889.0,86888.0,33.17134385]
[1763664415114,0.76580495,86889.0,86888.0,33.17134385]
[1763664415265,0.81790744,86889.0,86888.0,33.17134385]
[1763664415668,0.84689223,86889.0,86888.0,33.17134385]
[1763664416311,0.92693884,86889.0,86888.0,33.17134385]
[1763664416551,0.92493884,86889.0,86888.0,33.17134385]
[1763664416721,0.98233884,86889.0,86888.0,33.17134385]
[1763664416892,0.98533884,86889.0,86888.0,33.17134385]
[1763664417087,1.00676578,86889.0,86888.0,33.17134385]
[1763664417302,0.69454044,86889.0,86888.0,33.17134385]
[1763664417508,0.92471917,86889.0,86888.0,33.17134385]
[1763664417711,0.90664574,86889.0,86888.0,33.17134385]
[1763664418044,0.85454325,86889.0,86888.0,33.17134385]
[1763664418200,0.91700073,86889.0,86888.0,33.17134385]
[1763664418583,0.91701047,86889.0,86888.0,33.17134385]
[1763664418858,0.9170106,86889.0,86888.0,33.16008379]
[1763664419143,0.99930043,86889.0,86888.0,33.16008379]
[1763664419341,0.9170106,86889.0,86888.0,33.16008379]
[1763664419543,0.99933998,86889.0,86888.0,33.16008379]
[1763664420309,0.9170106,86889.0,86888.0,33.16008379]
[1763664420538,0.9350883,86889.0,86888.0,33.16008379]
[1763664420734,0.94581065,86889.0,86888.0,33.14622485]
[1763664420946,0.71171192,86889.0,86888.0,33.14622485]
[1763664421147,0.86080337,86889.0,86888.0,32.39458724]
[1763664421495,0.92294036,86889.0,86888.0,31.88476398]
[1763664421704,0.8801971,86889.0,86888.0,31.80232033]
[1763664421927,0.89311446,86889.0,86888.0,31.75266361]
[1763664422133,0.88010445,86889.0,86888.0,31.7032817]
[1763664422342,0.88010445,86889.0,86888.0,31.66864368]
[1763664422548,0.89818606,86889.0,86888.0,31.63400566]
[1763664422755,0.89618606,86889.0,86888.0,31.59936764]
[1763664422934,0.89426606,86889.0,86888.0,31.56472962]
[1763664423136,0.89518606,86889.0,86888.0,31.56472962]
[1763664423286,0.89918606,86889.0,86888.0,31.55722164]
[1763664423497,0.89326606,86889.0,86888.0,31.55722164]
[1763664423699,0.53135657,86889.0,86888.0,31.55722164]
[1763664423904,0.53435657,86889.0,86888.0,31.55722164]
[1763664424288,0.90945906,86889.0,86888.0,31.55722164]
[1763664424457,0.92063725,86889.0,86888.0,31.55722164]
[1763664424657,0.85735657,86889.0,86888.0,31.55722164]
[1763664424859,0.90173671,86889.0,86888.0,31.55722164]
[1763664425089,0.90844331,86889.0,86888.0,31.55722164]
[1763664425929,0.90544331,86889.0,86888.0,31.55722164]
[1763664426315,0.90844331,86889.0,86888.0,31.55722164]
[1763664426515,0.91144331,86889.0,86888.0,31.55722164]
[1763664427550,0.35826458,86889.0,86888.0,31.55722164]
[1763664427753,0.30727151,86889.0,86888.0,31.55722164]
[1763664427966,0.30783661,86889.0,86888.0,31.55722164]
[1763664428177,0.66489449,86889.0,86888.0,31.55722164]
[1763664428325,0.67524948,86889.0,86888.0,31.55722164]
[1763664428536,0.73696241,86889.0,86888.0,31.55722164]
[1763664428747,0.67525879,86889.0,86888.0,31.55722164]
[1763664429148,0.73696241,86889.0,86888.0,31.55722164]
[1763664429624,0.73396241,86889.0,86888.0,31.55722164]
[1763664430022,0.72796241,86889.0,86888.0,31.55722164]
[1763664430371,0.5378843,86889.0,86888.0,31.55722164]
[1763664430573,0.56458932,86889.0,86888.0,31.55722164]
[1763664430793,0.70899758,86889.0,86888.0,31.55722164]
[1763664431155,0.51591597,86889.0,86888.0,31.55722164]
[1763664431300,0.40427997,86889.0,86888.0,31.55722164]
[1763664431631,0.03807272,86889.0,86888.0,31.55722164]
[1763664431794,0.53807272,86889.0,86888.0,31.55722164]
[1763664431999,0.04007272,86889.0,86888.0,31.58504164]
[1763664432201,0.07092422,86889.0,86888.0,31.55722164]
[1763664432400,0.07092216,86889.0,86888.0,31.55722164]
[1763664432598,0.04007066,86889.0,86888.0,31.55722164]
[1763664433199,0.36307066,86889.0,86888.0,31.55722164]
[1763664433401,0.36107066,86889.0,86888.0,31.55722164]
[1763664433608,0.36307066,86889.0,86888.0,31.55722164]
[1763664433839,0.04007066,86889.0,86888.0,31.55722164]
[1763664433992,0.05422302,86889.0,86888.0,31.55722164]
[1763664434391,0.05222384,86889.0,86888.0,31.61370164]
[1763664434561,0.05614384,86889.0,86888.0,31.61370164]
[1763664434945,0.05514384,86889.0,86888.0,31.61370164]
[1763664435148,0.05614384,86889.0,86888.0,31.61370164]
[1763664436288,0.04542917,86889.0,86888.0,31.61370164]
[1763664436442,0.04442917,86889.0,86888.0,31.61370164]
[1763664436887,0.02635681,86889.0,86888.0,31.61370164]
[1763664437417,0.00392,86889.0,86888.0,31.61370164]
[1763664440312,0.02198879,86889.0,86888.0,31.61370164]
[1763664440514,0.02198879,86889.0,86888.0,31.55722164]
[1763664440716,0.04332437,86889.0,86888.0,31.55722164]
[1763664440912,0.05399051,86889.0,86888.0,31.55722164]
[1763664441519,0.05399051,86889.0,86888.0,31.61370164]
[1763664441721,0.04332437,86889.0,86888.0,31.55722164]
[1763664441968,0.05398791,86889.0,86888.0,31.55722164]
[1763664442173,0.05398791,86889.0,86888.0,31.61370164]